[Event "*** SCC Grand Prix: Titled Tuesday Blitz"]
[Site "Chess.com"]
[Date "2020.08.11"]
[Round "2"]
[White "Kaua18"]
[Black "Mikasinski"]
[Result "1-0"]
[WhiteElo "2257"]
[BlackElo "2436"]
[TimeControl "180+1"]
[EndTime "10:19:49 PDT"]
[Termination "Kaua18 won by resignation"]

1. e4 {[%clk 0:03:00]} 1... c5 {[%clk 0:02:59.7]} 2. Nf3 {[%clk 0:03:00.4]} 2...
d6 {[%clk 0:02:59.8]} 3. d4 {[%clk 0:03:01]} 3... cxd4 {[%clk 0:02:59.9]} 4.
Nxd4 {[%clk 0:03:01.9]} 4... Nf6 {[%clk 0:02:59.3]} 5. Nc3 {[%clk 0:03:01.2]}
5... g6 {[%clk 0:02:59.7]} 6. Be3 {[%clk 0:03:01.3]} 6... Bg7 {[%clk 0:03:00.1]}
7. f3 {[%clk 0:03:01.8]} 7... O-O {[%clk 0:03:00.6]} 8. Qd2 {[%clk 0:03:02.2]}
8... Nc6 {[%clk 0:03:01.2]} 9. O-O-O {[%clk 0:03:02.4]} 9... Bd7 {[%clk
0:03:00.9]} 10. Kb1 {[%clk 0:03:00.2]} 10... Rc8 {[%clk 0:02:59.9]} 11. h4
{[%clk 0:03:00.1]} 11... h5 {[%clk 0:02:57.6]} 12. Be2 {[%clk 0:02:40.7]} 12...
Ne5 {[%clk 0:02:46.6]} 13. g4 {[%clk 0:02:40.4]} 13... hxg4 {[%clk 0:02:35.8]}
14. h5 {[%clk 0:02:39.9]} 14... gxh5 {[%clk 0:01:39.6]} 15. Bh6 {[%clk
0:02:30.8]} 15... Ng6 {[%clk 0:01:15.4]} 16. fxg4 {[%clk 0:01:53.6]} 16... Rxc3
{[%clk 0:00:58.3]} 17. Bxg7 {[%clk 0:01:42.1]} 17... Kxg7 {[%clk 0:00:57]} 18.
Qxc3 {[%clk 0:01:36.8]} 18... e5 {[%clk 0:00:32.4]} 19. Nf5+ {[%clk 0:01:29.1]}
19... Bxf5 {[%clk 0:00:29.8]} 20. exf5 {[%clk 0:01:23]} 20... Nf4 {[%clk
0:00:29.3]} 21. g5 {[%clk 0:00:30]} 21... Ne4 {[%clk 0:00:27.4]} 22. f6+ {[%clk
0:00:28.1]} 22... Kg8 {[%clk 0:00:23]} 23. Qf3 {[%clk 0:00:24.3]} 23... Nxg5
{[%clk 0:00:06]} 24. Rdg1 {[%clk 0:00:22.5]} 24... Qxf6 {[%clk 0:00:06.3]} 25.
Rxh5 {[%clk 0:00:21.9]} 25... Nxh5 {[%clk 0:00:05.3]} 26. Qxh5 {[%clk
0:00:18.7]} 26... Rd8 {[%clk 0:00:03.2]} 27. Rxg5+ {[%clk 0:00:19.6]} 27... Kf8
{[%clk 0:00:03.5]} 28. Rf5 {[%clk 0:00:18.5]} 28... Qg7 {[%clk 0:00:02.7]} 29.
b3 {[%clk 0:00:12.9]} 29... Ke7 {[%clk 0:00:02.1]} 30. Qh4+ {[%clk 0:00:12.5]}
30... f6 {[%clk 0:00:02.1]} 31. Qb4 {[%clk 0:00:11.7]} 31... b6 {[%clk
0:00:02.2]} 32. Qa4 {[%clk 0:00:10.2]} 32... Qg1+ {[%clk 0:00:02.2]} 33. Rf1
{[%clk 0:00:10.5]} 33... Qc5 {[%clk 0:00:01.8]} 34. Qxa7+ {[%clk 0:00:10.7]}
34... Rd7 {[%clk 0:00:02.5]} 35. Qa6 {[%clk 0:00:10.7]} 35... Qe3 {[%clk
0:00:02.6]} 36. Qd3 {[%clk 0:00:10.7]} 36... Qc5 {[%clk 0:00:02.2]} 37. Qg6
{[%clk 0:00:09.7]} 37... Kd8 {[%clk 0:00:01.6]} 38. Bg4 {[%clk 0:00:09.3]} 38...
Re7 {[%clk 0:00:01.4]} 39. Qg8+ {[%clk 0:00:09.3]} 39... Kc7 {[%clk 0:00:01.6]}
40. Qc4 {[%clk 0:00:06.8]} 40... Qxc4 {[%clk 0:00:01.4]} 41. bxc4 {[%clk
0:00:07.7]} 41... Rf7 {[%clk 0:00:01.4]} 42. Be6 {[%clk 0:00:07.1]} 42... Rf8
{[%clk 0:00:02]} 43. Kb2 {[%clk 0:00:07.7]} 43... Kc6 {[%clk 0:00:02.5]} 44. Kc3
{[%clk 0:00:07.8]} 44... Kc5 {[%clk 0:00:03.2]} 45. Rb1 {[%clk 0:00:08.2]} 45...
Kc6 {[%clk 0:00:02]} 46. Bd5+ {[%clk 0:00:08.3]} 46... Kc7 {[%clk 0:00:02.6]}
47. Rh1 {[%clk 0:00:07.7]} 47... f5 {[%clk 0:00:02.7]} 48. Rh7+ {[%clk
0:00:08.1]} 48... Kd8 {[%clk 0:00:02.8]} 49. Rb7 {[%clk 0:00:08.1]} 49... Ke8
{[%clk 0:00:01.4]} 50. Rxb6 {[%clk 0:00:08.5]} 50... f4 {[%clk 0:00:01.5]} 51.
Rb8+ {[%clk 0:00:08.6]} 51... Ke7 {[%clk 0:00:01.7]} 52. Rxf8 {[%clk 0:00:09]}
52... Kxf8 {[%clk 0:00:02.3]} 53. Kd3 {[%clk 0:00:09.9]} 53... Ke7 {[%clk
0:00:02.7]} 1-0

[Event "*** SCC Grand Prix: Titled Tuesday Blitz"]
[Site "Chess.com"]
[Date "2020.08.11"]
[Round "2"]
[White "Xeslu"]
[Black "csati17"]
[Result "1-0"]
[WhiteElo "2308"]
[BlackElo "2587"]
[TimeControl "180+1"]
[EndTime "10:19:51 PDT"]
[Termination "Xeslu won on time"]

1. e4 {[%clk 0:02:51.9]} 1... e6 {[%clk 0:03:00.2]} 2. d3 {[%clk 0:02:48.9]}
2... d5 {[%clk 0:03:01.1]} 3. Nd2 {[%clk 0:02:44.9]} 3... Nf6 {[%clk 0:03:01.1]}
4. Ngf3 {[%clk 0:02:43.7]} 4... Bc5 {[%clk 0:03:00.4]} 5. e5 {[%clk 0:02:38.7]}
5... Nfd7 {[%clk 0:03:00.2]} 6. d4 {[%clk 0:02:37.3]} 6... Bb6 {[%clk
0:03:00.2]} 7. c3 {[%clk 0:02:31.2]} 7... c5 {[%clk 0:03:01.1]} 8. dxc5 {[%clk
0:02:21.2]} 8... Bxc5 {[%clk 0:02:51]} 9. Nb3 {[%clk 0:02:20]} 9... Bb6 {[%clk
0:02:46.8]} 10. Bb5 {[%clk 0:02:19.3]} 10... Nc6 {[%clk 0:02:46.2]} 11. O-O
{[%clk 0:02:18.6]} 11... Qc7 {[%clk 0:02:38.5]} 12. Bf4 {[%clk 0:02:17.4]} 12...
a6 {[%clk 0:02:38.5]} 13. Ba4 {[%clk 0:02:16.8]} 13... Ba7 {[%clk 0:02:36.8]}
14. Nbd4 {[%clk 0:02:15.9]} 14... b5 {[%clk 0:02:34.7]} 15. Bxb5 {[%clk
0:02:04]} 15... axb5 {[%clk 0:02:32]} 16. Nxb5 {[%clk 0:02:04.2]} 16... Qd8
{[%clk 0:02:09.7]} 17. Nd6+ {[%clk 0:02:05.1]} 17... Ke7 {[%clk 0:02:09.9]} 18.
Re1 {[%clk 0:02:01.5]} 18... h6 {[%clk 0:02:04.9]} 19. c4 {[%clk 0:01:53.9]}
19... d4 {[%clk 0:01:55.6]} 20. a3 {[%clk 0:01:29.2]} 20... Bb8 {[%clk
0:01:42.3]} 21. b4 {[%clk 0:01:16.4]} 21... g5 {[%clk 0:01:17.3]} 22. Bg3 {[%clk
0:01:13.3]} 22... Nf8 {[%clk 0:01:07.4]} 23. b5 {[%clk 0:01:03]} 23... Na5
{[%clk 0:01:07.7]} 24. Nxd4 {[%clk 0:01:01.1]} 24... Ba7 {[%clk 0:01:06.8]} 25.
Qh5 {[%clk 0:00:39.6]} 25... Rh7 {[%clk 0:01:07.4]} 26. Rad1 {[%clk 0:00:39.2]}
26... Qb6 {[%clk 0:01:00.6]} 27. h4 {[%clk 0:00:21.2]} 27... Rg7 {[%clk
0:00:40.6]} 28. Qxh6 {[%clk 0:00:20.6]} 28... Rg6 {[%clk 0:00:40.5]} 29. Qh8
{[%clk 0:00:20.5]} 29... Bb7 {[%clk 0:00:36.4]} 30. h5 {[%clk 0:00:20.4]} 30...
Nd7 {[%clk 0:00:08.4]} 31. N6f5+ {[%clk 0:00:20.3]} 31... exf5 {[%clk
0:00:07.8]} 32. Nxf5+ {[%clk 0:00:21.2]} 32... Ke6 {[%clk 0:00:08.1]} 33. Ng7+
{[%clk 0:00:20.5]} 33... Rxg7 {[%clk 0:00:08]} 34. Qxg7 {[%clk 0:00:20.4]} 34...
Nxc4 {[%clk 0:00:08.4]} 35. Qxg5 {[%clk 0:00:19.7]} 35... Ncxe5 {[%clk
0:00:07.9]} 36. Bxe5 {[%clk 0:00:19.4]} 36... Qxf2+ {[%clk 0:00:08.2]} 37. Kh2
{[%clk 0:00:19.1]} 37... f6 {[%clk 0:00:08.4]} 38. Qg4+ {[%clk 0:00:18.5]} 38...
Qf5 {[%clk 0:00:06.4]} 39. Qxf5+ {[%clk 0:00:18.4]} 39... Kxf5 {[%clk
0:00:07.3]} 40. Rxd7 {[%clk 0:00:18.5]} 40... fxe5 {[%clk 0:00:07.7]} 41. Rxb7
{[%clk 0:00:18.8]} 41... Bd4 {[%clk 0:00:07.3]} 42. b6 {[%clk 0:00:18.6]} 42...
Rxa3 {[%clk 0:00:07.1]} 43. Rf7+ {[%clk 0:00:19.3]} 43... Ke6 {[%clk 0:00:07.2]}
44. Rf3 {[%clk 0:00:19.8]} 44... Bxb6 {[%clk 0:00:07.1]} 45. Rxa3 {[%clk
0:00:19.3]} 45... Bc7 {[%clk 0:00:05.8]} 46. Rae3 {[%clk 0:00:19.2]} 46... Kf5
{[%clk 0:00:06.1]} 47. Kh3 {[%clk 0:00:19.7]} 47... Bd6 {[%clk 0:00:06]} 48. g4+
{[%clk 0:00:20.6]} 48... Kf4 {[%clk 0:00:06.4]} 49. h6 {[%clk 0:00:21]} 49...
Kg5 {[%clk 0:00:06.1]} 50. Rxe5+ {[%clk 0:00:21.1]} 50... Kxh6 {[%clk
0:00:06.2]} 51. Rh5+ {[%clk 0:00:20.9]} 51... Kg7 {[%clk 0:00:05.8]} 52. Re6
{[%clk 0:00:21.5]} 52... Bf4 {[%clk 0:00:06.3]} 53. Rf5 {[%clk 0:00:21.3]} 53...
Bd2 {[%clk 0:00:06]} 54. Rd5 {[%clk 0:00:21.1]} 54... Kf7 {[%clk 0:00:06]} 55.
Re2 {[%clk 0:00:20.3]} 55... Bb4 {[%clk 0:00:06.1]} 56. g5 {[%clk 0:00:20.7]}
56... Kg6 {[%clk 0:00:06.5]} 57. Kg4 {[%clk 0:00:21.6]} 57... Bf8 {[%clk
0:00:06.2]} 58. Re6+ {[%clk 0:00:21.8]} 58... Kf7 {[%clk 0:00:06.8]} 59. Kf5
{[%clk 0:00:22.7]} 59... Be7 {[%clk 0:00:06.8]} 60. Rd7 {[%clk 0:00:22.9]} 60...
Kf8 {[%clk 0:00:07.1]} 61. Rexe7 {[%clk 0:00:23.4]} 1-0

[Event "*** SCC Grand Prix: Titled Tuesday Blitz"]
[Site "Chess.com"]
[Date "2020.08.11"]
[Round "2"]
[White "Valeron87"]
[Black "igorknyazev"]
[Result "1/2-1/2"]
[WhiteElo "2340"]
[BlackElo "1932"]
[TimeControl "180+1"]
[EndTime "10:19:57 PDT"]
[Termination "Game drawn by stalemate"]

1. e4 {[%clk 0:03:00.9]} 1... e5 {[%clk 0:03:00.2]} 2. Nf3 {[%clk 0:03:00.9]}
2... Nf6 {[%clk 0:03:00.6]} 3. Nc3 {[%clk 0:02:59]} 3... Bb4 {[%clk 0:02:59.8]}
4. Nxe5 {[%clk 0:02:58.3]} 4... O-O {[%clk 0:02:58.6]} 5. Nd3 {[%clk 0:02:58.3]}
5... Bxc3 {[%clk 0:02:56.3]} 6. dxc3 {[%clk 0:02:58.8]} 6... Nxe4 {[%clk
0:02:54]} 7. Be2 {[%clk 0:02:58.8]} 7... Qf6 {[%clk 0:02:33.5]} 8. O-O {[%clk
0:02:58]} 8... d5 {[%clk 0:02:27.1]} 9. Nf4 {[%clk 0:02:46]} 9... c6 {[%clk
0:02:26.4]} 10. c4 {[%clk 0:02:39.4]} 10... d4 {[%clk 0:02:20.4]} 11. Bf3 {[%clk
0:02:30.7]} 11... Ng5 {[%clk 0:02:14.4]} 12. Be2 {[%clk 0:02:23.7]} 12... Rd8
{[%clk 0:01:58.9]} 13. Bd3 {[%clk 0:02:23.5]} 13... Bf5 {[%clk 0:01:52.7]} 14.
Re1 {[%clk 0:02:11.7]} 14... Bxd3 {[%clk 0:01:41.9]} 15. Nxd3 {[%clk 0:02:04.1]}
15... Nd7 {[%clk 0:01:34.5]} 16. Qg4 {[%clk 0:01:51.9]} 16... h6 {[%clk
0:01:19.1]} 17. b4 {[%clk 0:01:30.3]} 17... Ne6 {[%clk 0:00:59.8]} 18. Bd2
{[%clk 0:01:23.3]} 18... Re8 {[%clk 0:00:55.1]} 19. c5 {[%clk 0:01:13.9]} 19...
Nef8 {[%clk 0:00:42.9]} 20. h4 {[%clk 0:01:03.2]} 20... Ne5 {[%clk 0:00:35.5]}
21. Nxe5 {[%clk 0:00:57.2]} 21... Rxe5 {[%clk 0:00:34.4]} 22. Rxe5 {[%clk
0:00:57.7]} 22... Qxe5 {[%clk 0:00:34.5]} 23. Re1 {[%clk 0:00:57.8]} 23... Qf6
{[%clk 0:00:30.1]} 24. Re4 {[%clk 0:00:55.8]} 24... Rd8 {[%clk 0:00:28.4]} 25.
Qe2 {[%clk 0:00:42]} 25... Ne6 {[%clk 0:00:28.3]} 26. g3 {[%clk 0:00:41.9]}
26... Qf5 {[%clk 0:00:27.1]} 27. Bc1 {[%clk 0:00:34.8]} 27... Kh7 {[%clk
0:00:24.4]} 28. Qd3 {[%clk 0:00:33.4]} 28... b6 {[%clk 0:00:17.9]} 29. cxb6
{[%clk 0:00:30.7]} 29... axb6 {[%clk 0:00:17.6]} 30. a4 {[%clk 0:00:24]} 30...
c5 {[%clk 0:00:17.2]} 31. bxc5 {[%clk 0:00:18]} 31... Nxc5 {[%clk 0:00:16.6]}
32. Rf4 {[%clk 0:00:06.6]} 32... Nxd3 {[%clk 0:00:13.1]} 33. Rxf5 {[%clk
0:00:06.8]} 33... Nxc1 {[%clk 0:00:13.5]} 34. Rxf7 {[%clk 0:00:07]} 34... Ra8
{[%clk 0:00:13]} 35. Rb7 {[%clk 0:00:05.4]} 35... Ra6 {[%clk 0:00:13.1]} 36. Kf1
{[%clk 0:00:04.9]} 36... Na2 {[%clk 0:00:12]} 37. Ke2 {[%clk 0:00:05.1]} 37...
Nc3+ {[%clk 0:00:12.4]} 38. Kd3 {[%clk 0:00:05.5]} 38... Nxa4 {[%clk 0:00:12.4]}
39. Kxd4 {[%clk 0:00:05.9]} 39... Ra5 {[%clk 0:00:11.4]} 40. c4 {[%clk
0:00:05.8]} 40... Rc5 {[%clk 0:00:11]} 41. f4 {[%clk 0:00:05.6]} 41... Rc6
{[%clk 0:00:10.7]} 42. g4 {[%clk 0:00:05.9]} 42... Nb2 {[%clk 0:00:10.5]} 43.
Kd5 {[%clk 0:00:05.2]} 43... Rxc4 {[%clk 0:00:10.4]} 44. Rxb6 {[%clk 0:00:04.9]}
44... Rc2 {[%clk 0:00:10.5]} 45. h5 {[%clk 0:00:04.1]} 45... Nd3 {[%clk
0:00:08.7]} 46. Ke4 {[%clk 0:00:04.1]} 46... Nf2+ {[%clk 0:00:08.3]} 47. Kf3
{[%clk 0:00:04]} 47... Nd3 {[%clk 0:00:07.7]} 48. Rd6 {[%clk 0:00:03.4]} 48...
Nc5 {[%clk 0:00:07.3]} 49. g5 {[%clk 0:00:03.1]} 49... Rc3+ {[%clk 0:00:06.6]}
50. Kg4 {[%clk 0:00:02.9]} 50... hxg5 {[%clk 0:00:05.3]} 51. fxg5 {[%clk
0:00:03.4]} 51... Ne6 {[%clk 0:00:05.3]} 52. Rxe6 {[%clk 0:00:02.3]} 52... Rc4+
{[%clk 0:00:04.8]} 53. Kf5 {[%clk 0:00:02.9]} 53... Rc5+ {[%clk 0:00:04.9]} 54.
Re5 {[%clk 0:00:03.5]} 54... Rc4 {[%clk 0:00:04.3]} 55. h6 {[%clk 0:00:03]}
55... gxh6 {[%clk 0:00:03.9]} 56. Re7+ {[%clk 0:00:03.7]} 56... Kg8 {[%clk
0:00:03.4]} 57. gxh6 {[%clk 0:00:04]} 57... Rc6 {[%clk 0:00:03.1]} 58. h7+
{[%clk 0:00:03.6]} 58... Kh8 {[%clk 0:00:03.3]} 59. Ra7 {[%clk 0:00:03.8]} 59...
Rf6+ {[%clk 0:00:02.9]} 60. Kxf6 {[%clk 0:00:03.8]} 1/2-1/2

[Event "*** SCC Grand Prix: Titled Tuesday Blitz"]
[Site "Chess.com"]
[Date "2020.08.11"]
[Round "2"]
[White "Gabrielian_Artur"]
[Black "Donskov_AN"]
[Result "1-0"]
[WhiteElo "2796"]
[BlackElo "2510"]
[TimeControl "180+1"]
[EndTime "10:19:59 PDT"]
[Termination "Gabrielian_Artur won by checkmate"]

1. e4 {[%clk 0:03:00.9]} 1... c5 {[%clk 0:03:00.2]} 2. Nc3 {[%clk 0:03:00.9]}
2... Nc6 {[%clk 0:03:00.2]} 3. Bb5 {[%clk 0:03:00.3]} 3... g6 {[%clk 0:02:54.8]}
4. Bxc6 {[%clk 0:02:59.9]} 4... dxc6 {[%clk 0:02:54.8]} 5. d3 {[%clk 0:03:00.2]}
5... Bg7 {[%clk 0:02:54.8]} 6. Be3 {[%clk 0:02:59.7]} 6... b6 {[%clk 0:02:54.8]}
7. Qd2 {[%clk 0:02:58.6]} 7... h6 {[%clk 0:02:51.4]} 8. Nge2 {[%clk 0:02:51.8]}
8... Nf6 {[%clk 0:02:51.4]} 9. h3 {[%clk 0:02:51.4]} 9... Nd7 {[%clk 0:02:51.1]}
10. O-O-O {[%clk 0:02:47.3]} 10... Nf8 {[%clk 0:02:47.9]} 11. d4 {[%clk
0:02:46.6]} 11... cxd4 {[%clk 0:02:46.8]} 12. Nxd4 {[%clk 0:02:41.4]} 12... Qc7
{[%clk 0:02:09.5]} 13. Nxc6 {[%clk 0:02:19]} 13... Bxh3 {[%clk 0:01:58.2]} 14.
Nd4 {[%clk 0:01:25.5]} 14... Bd7 {[%clk 0:01:50.3]} 15. Nd5 {[%clk 0:01:11.9]}
15... Qb7 {[%clk 0:01:44.1]} 16. Bxh6 {[%clk 0:01:07.3]} 16... Bxh6 {[%clk
0:01:38.9]} 17. Rxh6 {[%clk 0:01:06.9]} 17... Rxh6 {[%clk 0:01:39.8]} 18. Qxh6
{[%clk 0:01:07.1]} 18... Rc8 {[%clk 0:01:30]} 19. Qh8 {[%clk 0:00:45.8]} 19...
Qb8 {[%clk 0:01:21.6]} 20. f3 {[%clk 0:00:33.6]} 20... Qg3 {[%clk 0:01:08.7]}
21. Qh1 {[%clk 0:00:24]} 21... Qe5 {[%clk 0:00:49.3]} 22. Qh4 {[%clk 0:00:20.2]}
22... g5 {[%clk 0:00:48.1]} 23. Qf2 {[%clk 0:00:19.2]} 23... Ng6 {[%clk
0:00:47.9]} 24. Kb1 {[%clk 0:00:18.3]} 24... Kf8 {[%clk 0:00:40.2]} 25. g3
{[%clk 0:00:16.9]} 25... Kg7 {[%clk 0:00:38.4]} 26. f4 {[%clk 0:00:17.3]} 26...
gxf4 {[%clk 0:00:38.4]} 27. gxf4 {[%clk 0:00:17.7]} 27... Qxe4 {[%clk
0:00:38.9]} 28. f5 {[%clk 0:00:18.2]} 28... Qxd5 {[%clk 0:00:34]} 29. fxg6
{[%clk 0:00:17.1]} 29... fxg6 {[%clk 0:00:28]} 30. Qe1 {[%clk 0:00:14.3]} 30...
Qf7 {[%clk 0:00:25.1]} 31. a3 {[%clk 0:00:11.6]} 31... e5 {[%clk 0:00:25.5]} 32.
Qxe5+ {[%clk 0:00:11.4]} 32... Qf6 {[%clk 0:00:26]} 33. Qe3 {[%clk 0:00:07.4]}
33... Re8 {[%clk 0:00:25.2]} 34. Qd2 {[%clk 0:00:07.7]} 34... Bc6 {[%clk
0:00:22.2]} 35. Nxc6 {[%clk 0:00:07.4]} 35... Qxc6 {[%clk 0:00:23.1]} 36. Qd4+
{[%clk 0:00:07.7]} 36... Qf6 {[%clk 0:00:16.8]} 37. Qd7+ {[%clk 0:00:07.5]}
37... Re7 {[%clk 0:00:16.8]} 38. Qd8 {[%clk 0:00:07.6]} 38... Rf7 {[%clk
0:00:14.3]} 39. Qd2 {[%clk 0:00:06.3]} 39... Qf3 {[%clk 0:00:13.9]} 40. Qd4+
{[%clk 0:00:06]} 40... Qf6 {[%clk 0:00:14.1]} 41. Qd2 {[%clk 0:00:06.2]} 41...
Qf3 {[%clk 0:00:14]} 42. Re1 {[%clk 0:00:06.4]} 42... Qf4 {[%clk 0:00:10.6]} 43.
Qc3+ {[%clk 0:00:06.1]} 43... Qf6 {[%clk 0:00:10.4]} 44. Qe3 {[%clk 0:00:05.8]}
44... Qf4 {[%clk 0:00:10.4]} 45. Qe8 {[%clk 0:00:06]} 45... g5 {[%clk
0:00:07.9]} 46. Rh1 {[%clk 0:00:05]} 46... Rf8 {[%clk 0:00:06.8]} 47. Qe7+
{[%clk 0:00:05.4]} 47... Rf7 {[%clk 0:00:07.2]} 48. Qd8 {[%clk 0:00:05.8]} 48...
Rf8 {[%clk 0:00:07.3]} 49. Qd7+ {[%clk 0:00:06.3]} 49... Rf7 {[%clk 0:00:07.9]}
50. Qc8 {[%clk 0:00:06.4]} 50... Rf8 {[%clk 0:00:07.6]} 51. Qb7+ {[%clk
0:00:06.5]} 51... Rf7 {[%clk 0:00:07.2]} 52. Qa8 {[%clk 0:00:06.7]} 52... Kg6
{[%clk 0:00:07.4]} 53. Qg8+ {[%clk 0:00:05.8]} 53... Rg7 {[%clk 0:00:07.2]} 54.
Qe6+ {[%clk 0:00:06]} 54... Qf6 {[%clk 0:00:03.3]} 55. Rh6+ {[%clk 0:00:06.6]}
55... Kxh6 {[%clk 0:00:03.9]} 56. Qxf6+ {[%clk 0:00:07.2]} 56... Rg6 {[%clk
0:00:04.8]} 57. Qh8# {[%clk 0:00:07.1]} 1-0

[Event "*** SCC Grand Prix: Titled Tuesday Blitz"]
[Site "Chess.com"]
[Date "2020.08.11"]
[Round "2"]
[White "Resignify"]
[Black "dpopadic"]
[Result "0-1"]
[WhiteElo "2203"]
[BlackElo "2426"]
[TimeControl "180+1"]
[EndTime "10:19:59 PDT"]
[Termination "dpopadic won by resignation"]

1. e4 {[%clk 0:03:00.9]} 1... c5 {[%clk 0:02:59.3]} 2. Nc3 {[%clk 0:03:00.4]}
2... Nc6 {[%clk 0:02:59.4]} 3. g3 {[%clk 0:03:01]} 3... g6 {[%clk 0:02:58.8]} 4.
Bg2 {[%clk 0:03:01.1]} 4... Bg7 {[%clk 0:02:59]} 5. d3 {[%clk 0:03:01.7]} 5...
Rb8 {[%clk 0:02:57.8]} 6. Be3 {[%clk 0:03:00.4]} 6... d6 {[%clk 0:02:57.9]} 7.
f4 {[%clk 0:02:47.3]} 7... Nd4 {[%clk 0:02:57.3]} 8. Nf3 {[%clk 0:02:34.2]} 8...
b5 {[%clk 0:02:55.6]} 9. a3 {[%clk 0:02:29.5]} 9... e6 {[%clk 0:02:41.5]} 10.
Rb1 {[%clk 0:02:24.4]} 10... Ne7 {[%clk 0:02:39.4]} 11. Ne2 {[%clk 0:02:22.3]}
11... Nxf3+ {[%clk 0:02:33.7]} 12. Bxf3 {[%clk 0:02:22.2]} 12... O-O {[%clk
0:02:33.5]} 13. O-O {[%clk 0:02:21.2]} 13... Bb7 {[%clk 0:02:31.9]} 14. d4
{[%clk 0:01:54]} 14... c4 {[%clk 0:02:12.2]} 15. d5 {[%clk 0:01:42.3]} 15...
exd5 {[%clk 0:02:08.4]} 16. exd5 {[%clk 0:01:41.8]} 16... a6 {[%clk 0:02:00.4]}
17. Bd4 {[%clk 0:01:25]} 17... Nf5 {[%clk 0:01:27.2]} 18. Bxg7 {[%clk
0:01:19.6]} 18... Kxg7 {[%clk 0:01:26.4]} 19. Re1 {[%clk 0:01:13]} 19... Qb6+
{[%clk 0:01:17.8]} 20. Kh1 {[%clk 0:01:00.8]} 20... Rfe8 {[%clk 0:01:17.2]} 21.
c3 {[%clk 0:00:52.1]} 21... Re3 {[%clk 0:01:08.3]} 22. Ng1 {[%clk 0:00:20.3]}
22... Rbe8 {[%clk 0:00:58.5]} 23. Qd2 {[%clk 0:00:20.6]} 23... Qc5 {[%clk
0:00:43]} 24. Rxe3 {[%clk 0:00:19.6]} 24... Rxe3 {[%clk 0:00:41.4]} 25. Rd1
{[%clk 0:00:11.5]} 25... Rd3 {[%clk 0:00:34.8]} 26. Qe2 {[%clk 0:00:11.4]} 26...
Rxd1 {[%clk 0:00:22.4]} 27. Qxd1 {[%clk 0:00:12.3]} 27... Ne3 {[%clk 0:00:20.1]}
28. Qd2 {[%clk 0:00:04.9]} 28... Nxd5 {[%clk 0:00:18.9]} 29. Ne2 {[%clk
0:00:03.2]} 29... Bc6 {[%clk 0:00:16.5]} 30. Qd4+ {[%clk 0:00:01.8]} 30... Qxd4
{[%clk 0:00:15.6]} 31. Nxd4 {[%clk 0:00:02.7]} 31... Ba8 {[%clk 0:00:14.2]} 32.
Nc2 {[%clk 0:00:02.8]} 32... Nc7 {[%clk 0:00:14]} 33. Bxa8 {[%clk 0:00:03.4]}
33... Nxa8 {[%clk 0:00:13.6]} 34. Nb4 {[%clk 0:00:04.3]} 34... Nc7 {[%clk
0:00:12.8]} 35. Kg2 {[%clk 0:00:03.2]} 35... Kf6 {[%clk 0:00:12.9]} 36. Kf3
{[%clk 0:00:03.2]} 36... Ke6 {[%clk 0:00:13]} 37. Ke4 {[%clk 0:00:02.5]} 37...
f5+ {[%clk 0:00:12.6]} 38. Kd4 {[%clk 0:00:02.4]} 38... Kd7 {[%clk 0:00:11]} 39.
Nd5 {[%clk 0:00:01.3]} 39... Ne6+ {[%clk 0:00:10.7]} 40. Ke3 {[%clk 0:00:01.1]}
40... Kc6 {[%clk 0:00:09.8]} 41. Nf6 {[%clk 0:00:01.5]} 41... Nf8 {[%clk
0:00:08.7]} 42. Ng8 {[%clk 0:00:01.2]} 42... Kc5 {[%clk 0:00:08.2]} 43. Nf6
{[%clk 0:00:01.1]} 43... a5 {[%clk 0:00:07.8]} 44. Nd7+ {[%clk 0:00:01.1]} 44...
Nxd7 {[%clk 0:00:06.4]} 45. Kd2 {[%clk 0:00:01.3]} 45... Nf6 {[%clk 0:00:07.3]}
46. Ke3 {[%clk 0:00:01.4]} 46... Ne4 {[%clk 0:00:08]} 47. g4 {[%clk 0:00:01.2]}
47... d5 {[%clk 0:00:08.2]} 48. gxf5 {[%clk 0:00:02.1]} 48... gxf5 {[%clk
0:00:08.4]} 49. h4 {[%clk 0:00:02.1]} 49... b4 {[%clk 0:00:07.8]} 50. axb4+
{[%clk 0:00:02.1]} 50... axb4 {[%clk 0:00:07.9]} 51. cxb4+ {[%clk 0:00:03]}
51... Kxb4 {[%clk 0:00:07.8]} 52. Kd4 {[%clk 0:00:03.9]} 52... Nf6 {[%clk
0:00:07]} 53. Ke5 {[%clk 0:00:03.8]} 53... Kc5 {[%clk 0:00:06.2]} 54. Kxf6
{[%clk 0:00:04.1]} 54... d4 {[%clk 0:00:06.1]} 55. Kxf5 {[%clk 0:00:04.7]} 55...
d3 {[%clk 0:00:06.7]} 56. Kg5 {[%clk 0:00:05.3]} 56... d2 {[%clk 0:00:07.6]} 57.
Kh6 {[%clk 0:00:05.3]} 57... d1=Q {[%clk 0:00:08.5]} 58. Kxh7 {[%clk 0:00:06.2]}
58... Qf3 {[%clk 0:00:08.7]} 59. h5 {[%clk 0:00:05.9]} 59... Qxf4 {[%clk
0:00:09.2]} 60. h6 {[%clk 0:00:06.8]} 60... Qf5+ {[%clk 0:00:09]} 61. Kg8 {[%clk
0:00:06.8]} 61... Qe6+ {[%clk 0:00:08.8]} 62. Kh7 {[%clk 0:00:04.7]} 62... Qf7+
{[%clk 0:00:08.9]} 63. Kh8 {[%clk 0:00:04.8]} 63... Qf6+ {[%clk 0:00:09.7]} 64.
Kh7 {[%clk 0:00:04.4]} 64... Qxb2 {[%clk 0:00:10.6]} 65. Kg8 {[%clk 0:00:04.8]}
65... Qg2+ {[%clk 0:00:11.2]} 0-1